[Event "Early-Titled-Tuesday-Blitz-March-12-2024"]
[Site "Chess.com"]
[Date "2024.03.12"]
[Round "4"]
[White "Roedor"]
[Black "AlexeiShirov"]
[Result "0-1"]
[WhiteElo "2278"]
[BlackElo "2864"]
[TimeControl "180+1"]
[EndTime "8:38:55 PDT"]
[Termination "AlexeiShirov won by resignation"]

1. c4 {[%clk 0:02:50.4]} 1... e6 {[%clk 0:02:59.6]} 2. g3 {[%clk 0:02:47.5]}
2... d5 {[%clk 0:02:59]} 3. Bg2 {[%clk 0:02:47.5]} 3... Nf6 {[%clk 0:02:57.7]}
4. d4 {[%clk 0:02:47.5]} 4... Be7 {[%clk 0:02:47.9]} 5. Nf3 {[%clk 0:02:45.4]}
5... O-O {[%clk 0:02:46.7]} 6. O-O {[%clk 0:02:44.3]} 6... dxc4 {[%clk
0:02:46.1]} 7. h4 {[%clk 0:02:43.1]} 7... a6 {[%clk 0:02:42.8]} 8. Ne5 {[%clk
0:02:38.6]} 8... c5 {[%clk 0:02:19.5]} 9. dxc5 {[%clk 0:02:32.7]} 9... Qc7
{[%clk 0:02:13]} 10. Nxc4 {[%clk 0:02:28.6]} 10... Qxc5 {[%clk 0:02:12.4]} 11.
b3 {[%clk 0:02:11.4]} 11... Rd8 {[%clk 0:02:09.6]} 12. Qc2 {[%clk 0:01:52.6]}
12... Nc6 {[%clk 0:02:06.6]} 13. Be3 {[%clk 0:01:52.2]} 13... Nd4 {[%clk
0:02:05.2]} 14. Qb2 {[%clk 0:01:41.4]} 14... Ng4 {[%clk 0:01:59.5]} 15. Bxd4
{[%clk 0:01:13.8]} 15... Rxd4 {[%clk 0:01:57.5]} 16. e3 {[%clk 0:01:13.1]} 16...
Rd8 {[%clk 0:01:47.9]} 17. Nc3 {[%clk 0:01:03.5]} 17... Rb8 {[%clk 0:01:45.3]}
18. Ne4 {[%clk 0:00:58.5]} 18... Qf5 {[%clk 0:01:35.2]} 19. Rad1 {[%clk
0:00:51.3]} 19... Bd7 {[%clk 0:01:33.7]} 20. Ned6 {[%clk 0:00:46.1]} 20... Qh5
{[%clk 0:01:21.7]} 21. Nxb7 {[%clk 0:00:38.9]} 21... Bxh4 {[%clk 0:01:13.8]} 22.
Bf3 {[%clk 0:00:13.7]} 22... Bf6 {[%clk 0:00:58.7]} 23. Bxg4 {[%clk 0:00:10.4]}
23... Qxg4 {[%clk 0:00:57.3]} 24. Ne5 {[%clk 0:00:05.3]} 24... Bxe5 {[%clk
0:00:56.4]} 25. Qxe5 {[%clk 0:00:06.2]} 25... Rxb7 {[%clk 0:00:55.2]} 26. Rd4
{[%clk 0:00:06.5]} 26... Qf5 {[%clk 0:00:51.4]} 27. Qxf5 {[%clk 0:00:06]} 27...
exf5 {[%clk 0:00:50.8]} 28. Rfd1 {[%clk 0:00:06.9]} 28... Kf8 {[%clk 0:00:50.6]}
29. Rd6 {[%clk 0:00:07.5]} 29... Ke7 {[%clk 0:00:49.1]} 30. Rxa6 {[%clk
0:00:07.7]} 30... Rc8 {[%clk 0:00:49]} 31. Ra5 {[%clk 0:00:05.9]} 31... Rc2
{[%clk 0:00:47.5]} 32. Re5+ {[%clk 0:00:05.2]} 32... Be6 {[%clk 0:00:47.4]} 33.
Red5 {[%clk 0:00:05.8]} 33... Bxd5 {[%clk 0:00:45.9]} 0-1

[Event "Early-Titled-Tuesday-Blitz-March-12-2024"]
[Site "Chess.com"]
[Date "2024.03.12"]
[Round "4"]
[White "ChessSwole"]
[Black "zenitushka"]
[Result "1-0"]
[WhiteElo "2729"]
[BlackElo "2283"]
[TimeControl "180+1"]
[EndTime "8:38:59 PDT"]
[Termination "ChessSwole won by resignation"]

1. e4 {[%clk 0:03:00.9]} 1... e6 {[%clk 0:03:00]} 2. d4 {[%clk 0:03:00.7]} 2...
d5 {[%clk 0:03:00.9]} 3. exd5 {[%clk 0:03:01.5]} 3... exd5 {[%clk 0:03:01.7]} 4.
Nf3 {[%clk 0:03:02.1]} 4... Nf6 {[%clk 0:03:02.2]} 5. Bd3 {[%clk 0:03:02.1]}
5... Bd6 {[%clk 0:03:02.5]} 6. Qe2+ {[%clk 0:03:01.4]} 6... Be6 {[%clk
0:03:02.5]} 7. c4 {[%clk 0:03:00.3]} 7... Bb4+ {[%clk 0:02:44.9]} 8. Nc3 {[%clk
0:02:57.1]} 8... O-O {[%clk 0:02:43.7]} 9. O-O {[%clk 0:02:46.6]} 9... dxc4
{[%clk 0:02:14.3]} 10. Bxc4 {[%clk 0:02:44.9]} 10... Bxc4 {[%clk 0:02:15.2]} 11.
Qxc4 {[%clk 0:02:45.5]} 11... Ba5 {[%clk 0:02:15.5]} 12. Bg5 {[%clk 0:02:38.8]}
12... Qd6 {[%clk 0:02:05.4]} 13. Rfe1 {[%clk 0:02:16.5]} 13... c6 {[%clk
0:01:49.2]} 14. Ne5 {[%clk 0:02:10.5]} 14... Nbd7 {[%clk 0:01:46.8]} 15. Nxd7
{[%clk 0:02:10.7]} 15... Nxd7 {[%clk 0:01:46.5]} 16. Be7 {[%clk 0:02:10.8]}
16... Qf4 {[%clk 0:01:07]} 17. Bxf8 {[%clk 0:02:03.4]} 17... Rxf8 {[%clk
0:01:00.4]} 18. Re7 {[%clk 0:01:57.5]} 18... Nf6 {[%clk 0:01:00.6]} 19. h3
{[%clk 0:01:50.9]} 19... Bb6 {[%clk 0:00:36.2]} 20. Rd1 {[%clk 0:01:38.4]} 20...
Nh5 {[%clk 0:00:27.1]} 21. Rxb7 {[%clk 0:01:26.5]} 21... Qg5 {[%clk 0:00:23.6]}
22. Ne4 {[%clk 0:01:19.2]} 22... Qf4 {[%clk 0:00:17.5]} 23. Nc5 {[%clk
0:01:12.7]} 23... Qg5 {[%clk 0:00:14.4]} 24. Rd3 {[%clk 0:00:43.6]} 24... Nf4
{[%clk 0:00:04.3]} 25. Rg3 {[%clk 0:00:43.8]} 25... Qf6 {[%clk 0:00:02.8]} 26.
Nd7 {[%clk 0:00:39.7]} 26... Qxd4 {[%clk 0:00:03.1]} 27. Qxd4 {[%clk 0:00:38.6]}
27... Bxd4 {[%clk 0:00:04]} 28. Nxf8 {[%clk 0:00:38.3]} 28... Ne2+ {[%clk
0:00:04.6]} 29. Kh2 {[%clk 0:00:37.1]} 29... Bxf2 {[%clk 0:00:05.2]} 30. Rf3
{[%clk 0:00:35.9]} 1-0

[Event "Early-Titled-Tuesday-Blitz-March-12-2024"]
[Site "Chess.com"]
[Date "2024.03.12"]
[Round "4"]
[White "Triumphmate"]
[Black "ValentunHulka"]
[Result "1-0"]
[WhiteElo "2527"]
[BlackElo "2714"]
[TimeControl "180+1"]
[EndTime "8:38:59 PDT"]
[Termination "Triumphmate won by resignation"]

1. e4 {[%clk 0:03:00.9]} 1... c5 {[%clk 0:02:59.5]} 2. Nf3 {[%clk 0:02:54.3]}
2... Nf6 {[%clk 0:02:59.9]} 3. Nc3 {[%clk 0:02:54.1]} 3... d5 {[%clk 0:03:00]}
4. exd5 {[%clk 0:02:54.3]} 4... Nxd5 {[%clk 0:03:00.9]} 5. Bc4 {[%clk
0:02:54.5]} 5... Nxc3 {[%clk 0:03:00.4]} 6. bxc3 {[%clk 0:02:55.4]} 6... e6
{[%clk 0:03:00.7]} 7. d4 {[%clk 0:02:55.3]} 7... Bd6 {[%clk 0:02:59.4]} 8. O-O
{[%clk 0:02:53.4]} 8... O-O {[%clk 0:02:56.8]} 9. Bd3 {[%clk 0:02:50]} 9... Nd7
{[%clk 0:02:56.3]} 10. Rb1 {[%clk 0:02:48.2]} 10... Qc7 {[%clk 0:02:55.6]} 11.
Be3 {[%clk 0:02:40.1]} 11... b6 {[%clk 0:02:50.6]} 12. Ng5 {[%clk 0:02:39.7]}
12... Nf6 {[%clk 0:02:48.5]} 13. Qf3 {[%clk 0:02:40.4]} 13... Bb7 {[%clk
0:02:46.1]} 14. Qh3 {[%clk 0:02:41]} 14... h6 {[%clk 0:02:44]} 15. Nf3 {[%clk
0:02:28.9]} 15... Bxf3 {[%clk 0:02:43]} 16. Qxf3 {[%clk 0:02:28.5]} 16... Bxh2+
{[%clk 0:02:42.8]} 17. Kh1 {[%clk 0:02:29.1]} 17... Bd6 {[%clk 0:02:11.8]} 18.
Bxh6 {[%clk 0:02:15.3]} 18... gxh6 {[%clk 0:02:07.8]} 19. Qxf6 {[%clk 0:02:13]}
19... Bf4 {[%clk 0:02:06.3]} 20. Rbe1 {[%clk 0:01:58.5]} 20... Bg5 {[%clk
0:02:03.4]} 21. Qf3 {[%clk 0:01:57.3]} 21... Qf4 {[%clk 0:02:04]} 22. Qxf4
{[%clk 0:01:31.9]} 22... Bxf4 {[%clk 0:02:04.9]} 23. Re4 {[%clk 0:01:32.6]}
23... Bg5 {[%clk 0:01:58.2]} 24. f4 {[%clk 0:01:31.6]} 24... Bf6 {[%clk
0:01:43.3]} 25. f5 {[%clk 0:01:28.2]} 25... cxd4 {[%clk 0:01:36.3]} 26. fxe6
{[%clk 0:01:10.5]} 26... fxe6 {[%clk 0:01:34.1]} 27. Rxe6 {[%clk 0:01:10.4]}
27... Bg7 {[%clk 0:01:29.2]} 28. Rxf8+ {[%clk 0:01:07.4]} 28... Rxf8 {[%clk
0:01:30.1]} 29. cxd4 {[%clk 0:01:07.5]} 29... Bxd4 {[%clk 0:01:14.9]} 30. Rxh6
{[%clk 0:01:05.5]} 30... Rf6 {[%clk 0:01:07.7]} 31. Rh4 {[%clk 0:00:57.2]} 31...
Bc5 {[%clk 0:01:05.5]} 32. Kh2 {[%clk 0:00:54.5]} 32... a5 {[%clk 0:01:02.1]}
33. Kh3 {[%clk 0:00:50.5]} 33... Kg7 {[%clk 0:01:00.6]} 34. Rh7+ {[%clk
0:00:49.6]} 34... Kg8 {[%clk 0:01:00.6]} 35. Rb7 {[%clk 0:00:46.8]} 35... Rf4
{[%clk 0:00:41.5]} 36. g4 {[%clk 0:00:44.8]} 36... Ra4 {[%clk 0:00:26.3]} 37. g5
{[%clk 0:00:42.7]} 37... Rxa2 {[%clk 0:00:26.6]} 38. Bc4+ {[%clk 0:00:42.7]} 1-0

[Event "Early-Titled-Tuesday-Blitz-March-12-2024"]
[Site "Chess.com"]
[Date "2024.03.12"]
[Round "4"]
[White "electrosaw"]
[Black "DonkyDonkyDonkey"]
[Result "0-1"]
[WhiteElo "2554"]
[BlackElo "2886"]
[TimeControl "180+1"]
[EndTime "8:39:03 PDT"]
[Termination "DonkyDonkyDonkey won by resignation"]

1. g3 {[%clk 0:03:00.9]} 1... e5 {[%clk 0:02:59.7]} 2. Bg2 {[%clk 0:03:01.1]}
2... d5 {[%clk 0:03:00]} 3. b3 {[%clk 0:03:01.3]} 3... Nf6 {[%clk 0:03:00.1]} 4.
Bb2 {[%clk 0:03:01.5]} 4... Nc6 {[%clk 0:03:00.8]} 5. e3 {[%clk 0:03:01.6]} 5...
Bd6 {[%clk 0:03:01.2]} 6. Ne2 {[%clk 0:03:01.8]} 6... e4 {[%clk 0:03:01.9]} 7.
h3 {[%clk 0:03:00]} 7... h5 {[%clk 0:03:02.3]} 8. d3 {[%clk 0:02:58.7]} 8... Bf5
{[%clk 0:03:02.4]} 9. a3 {[%clk 0:02:55.6]} 9... Qe7 {[%clk 0:03:01.9]} 10. b4
{[%clk 0:02:54.3]} 10... O-O-O {[%clk 0:03:01.1]} 11. d4 {[%clk 0:02:49.1]}
11... Qe6 {[%clk 0:02:53.2]} 12. Nd2 {[%clk 0:02:41.9]} 12... g5 {[%clk
0:02:50.6]} 13. Nb3 {[%clk 0:02:39.6]} 13... h4 {[%clk 0:02:43.2]} 14. g4 {[%clk
0:02:38.5]} 14... Nxg4 {[%clk 0:02:43.9]} 15. hxg4 {[%clk 0:02:38.7]} 15... Bxg4
{[%clk 0:02:44.8]} 16. Nc5 {[%clk 0:02:30.6]} 16... Bxc5 {[%clk 0:02:39.7]} 17.
dxc5 {[%clk 0:02:31.5]} 17... d4 {[%clk 0:02:38]} 18. Bxd4 {[%clk 0:02:22.1]}
18... h3 {[%clk 0:02:31.2]} 19. Bf1 {[%clk 0:02:14.3]} 19... Ne5 {[%clk
0:02:23.7]} 20. Kd2 {[%clk 0:02:06.4]} 20... Bf3 {[%clk 0:02:12.6]} 21. Rh2
{[%clk 0:01:55.9]} 21... f6 {[%clk 0:01:38.4]} 22. Kc3 {[%clk 0:01:47.6]} 22...
Ng4 {[%clk 0:01:32.3]} 23. Rxh3 {[%clk 0:01:46.5]} 23... Nxf2 {[%clk 0:01:32.7]}
24. Qe1 {[%clk 0:01:38.1]} 24... Nxh3 {[%clk 0:01:32.3]} 25. Qg3 {[%clk
0:01:36.6]} 25... Rh6 {[%clk 0:01:26.2]} 26. Kb2 {[%clk 0:01:22]} 26... Qg4
{[%clk 0:01:24.7]} 27. Qxg4+ {[%clk 0:01:16.4]} 27... Bxg4 {[%clk 0:01:25.6]}
28. Nc3 {[%clk 0:01:16]} 28... f5 {[%clk 0:01:23.9]} 29. c6 {[%clk 0:01:16.3]}
29... Rxc6 {[%clk 0:01:18.2]} 30. Nb5 {[%clk 0:01:16.2]} 30... Rh6 {[%clk
0:01:03.2]} 31. Nxa7+ {[%clk 0:01:14.6]} 31... Kb8 {[%clk 0:01:03.8]} 32. Nb5
{[%clk 0:01:14.2]} 32... f4 {[%clk 0:01:04.4]} 33. Be5 {[%clk 0:01:11.1]} 33...
Rc6 {[%clk 0:00:58.1]} 34. Nd4 {[%clk 0:01:03.3]} 34... Rh6 {[%clk 0:00:54.5]}
35. Bxh3 {[%clk 0:00:30.4]} 35... Bxh3 {[%clk 0:00:52.9]} 36. exf4 {[%clk
0:00:30.4]} 36... gxf4 {[%clk 0:00:43]} 37. Bxf4 {[%clk 0:00:31.3]} 37... Rg6
{[%clk 0:00:39.5]} 38. Be5 {[%clk 0:00:28.2]} 38... Rd5 {[%clk 0:00:38.9]} 39.
Bh8 {[%clk 0:00:22.9]} 39... Rh5 {[%clk 0:00:37.3]} 0-1

[Event "Early-Titled-Tuesday-Blitz-March-12-2024"]
[Site "Chess.com"]
[Date "2024.03.12"]
[Round "4"]
[White "Witik"]
[Black "SilverSwords13"]
[Result "0-1"]
[WhiteElo "2743"]
[BlackElo "2510"]
[TimeControl "180+1"]
[EndTime "8:39:05 PDT"]
[Termination "SilverSwords13 won on time"]

1. d4 {[%clk 0:02:59.8]} 1... d5 {[%clk 0:02:59.3]} 2. Bf4 {[%clk 0:02:58.3]}
2... Nf6 {[%clk 0:02:59.1]} 3. e3 {[%clk 0:02:58.4]} 3... c5 {[%clk 0:02:59.5]}
4. Nf3 {[%clk 0:02:58.4]} 4... Nc6 {[%clk 0:03:00.2]} 5. Nbd2 {[%clk 0:02:58.3]}
5... e6 {[%clk 0:03:00.9]} 6. c3 {[%clk 0:02:54.8]} 6... cxd4 {[%clk 0:03:01.2]}
7. exd4 {[%clk 0:02:54.6]} 7... Nh5 {[%clk 0:03:01.9]} 8. Be3 {[%clk 0:02:53.6]}
8... Bd6 {[%clk 0:03:01.7]} 9. g3 {[%clk 0:02:49.3]} 9... f5 {[%clk 0:02:51.2]}
10. Ne5 {[%clk 0:02:39.6]} 10... Nf6 {[%clk 0:02:48.6]} 11. Bb5 {[%clk
0:02:26.3]} 11... Qb6 {[%clk 0:02:43.5]} 12. Qa4 {[%clk 0:02:24.8]} 12... Bd7
{[%clk 0:02:32.6]} 13. Nxd7 {[%clk 0:02:20.1]} 13... Kxd7 {[%clk 0:02:29.9]} 14.
O-O {[%clk 0:02:12.4]} 14... Rae8 {[%clk 0:02:05.8]} 15. Nf3 {[%clk 0:02:08.7]}
15... Kc7 {[%clk 0:02:03.3]} 16. Ne5 {[%clk 0:01:53.7]} 16... Ng4 {[%clk
0:01:46.5]} 17. Nxg4 {[%clk 0:01:46.1]} 17... fxg4 {[%clk 0:01:47.4]} 18. c4
{[%clk 0:01:38.9]} 18... a6 {[%clk 0:01:33.5]} 19. Bxc6 {[%clk 0:01:24.1]} 19...
Qxc6 {[%clk 0:01:34.4]} 20. Qd1 {[%clk 0:00:48.2]} 20... dxc4 {[%clk 0:01:32]}
21. Qxg4 {[%clk 0:00:47.4]} 21... g6 {[%clk 0:01:24.1]} 22. Rac1 {[%clk
0:00:46.3]} 22... b5 {[%clk 0:01:24.3]} 23. b3 {[%clk 0:00:46.4]} 23... c3
{[%clk 0:01:24.1]} 24. b4 {[%clk 0:00:45.6]} 24... Bxb4 {[%clk 0:00:55.4]} 25.
d5 {[%clk 0:00:45.8]} 25... Qc4 {[%clk 0:00:52.6]} 26. Qxc4+ {[%clk 0:00:19.6]}
26... bxc4 {[%clk 0:00:53.5]} 27. Bd4 {[%clk 0:00:18.8]} 27... exd5 {[%clk
0:00:48.6]} 28. a3 {[%clk 0:00:07.8]} 28... Ba5 {[%clk 0:00:37.7]} 29. Rfd1
{[%clk 0:00:06]} 29... Kc6 {[%clk 0:00:33.6]} 30. Bxh8 {[%clk 0:00:01.7]} 30...
Rxh8 {[%clk 0:00:34.1]} 31. Kg2 {[%clk 0:00:01.5]} 31... Kc5 {[%clk 0:00:33.6]}
0-1

[Event "Early-Titled-Tuesday-Blitz-March-12-2024"]
[Site "Chess.com"]
[Date "2024.03.12"]
[Round "4"]
[White "Shuvalov"]
[Black "AlessiaSanteramo"]
[Result "1-0"]
[WhiteElo "2523"]
[BlackElo "2255"]
[TimeControl "180+1"]
[EndTime "8:39:06 PDT"]
[Termination "Shuvalov won on time"]

1. d4 {[%clk 0:03:00.9]} 1... Nf6 {[%clk 0:02:57.3]} 2. c4 {[%clk 0:03:00.4]}
2... e6 {[%clk 0:02:46.8]} 3. Nc3 {[%clk 0:02:58]} 3... Bb4 {[%clk 0:02:43.7]}
4. e3 {[%clk 0:02:57.2]} 4... O-O {[%clk 0:02:40.6]} 5. a3 {[%clk 0:02:56.7]}
5... Bxc3+ {[%clk 0:02:39.7]} 6. bxc3 {[%clk 0:02:57.6]} 6... c5 {[%clk
0:02:38.4]} 7. Ne2 {[%clk 0:02:57]} 7... d6 {[%clk 0:02:31.1]} 8. Ng3 {[%clk
0:02:53.5]} 8... e5 {[%clk 0:02:30.8]} 9. d5 {[%clk 0:02:40.3]} 9... e4 {[%clk
0:02:17.1]} 10. f3 {[%clk 0:02:36.4]} 10... Re8 {[%clk 0:02:14.8]} 11. Nxe4
{[%clk 0:02:28.3]} 11... Nxe4 {[%clk 0:02:12.9]} 12. fxe4 {[%clk 0:02:29.2]}
12... Qh4+ {[%clk 0:02:13]} 13. Kd2 {[%clk 0:02:25.8]} 13... Qxe4 {[%clk
0:02:10.4]} 14. Qf3 {[%clk 0:02:21.2]} 14... Qh4 {[%clk 0:01:52.2]} 15. Bd3
{[%clk 0:02:16.1]} 15... Nd7 {[%clk 0:01:51.5]} 16. Qf4 {[%clk 0:02:11.3]} 16...
Qe7 {[%clk 0:01:41.9]} 17. Kc2 {[%clk 0:02:08.8]} 17... Ne5 {[%clk 0:01:35.3]}
18. Be2 {[%clk 0:02:08.1]} 18... Ng6 {[%clk 0:01:22.4]} 19. Qf3 {[%clk
0:02:04.6]} 19... Qe5 {[%clk 0:01:18.8]} 20. Bd3 {[%clk 0:01:58.4]} 20... Bd7
{[%clk 0:01:11.5]} 21. a4 {[%clk 0:01:57.1]} 21... Nh4 {[%clk 0:01:01]} 22. Qg3
{[%clk 0:01:50.3]} 22... Qxg3 {[%clk 0:00:46.8]} 23. hxg3 {[%clk 0:01:51.2]}
23... Ng6 {[%clk 0:00:47.3]} 24. e4 {[%clk 0:01:41.8]} 24... Rad8 {[%clk
0:00:36.1]} 25. Bf4 {[%clk 0:01:41.1]} 25... Bc8 {[%clk 0:00:36.5]} 26. a5
{[%clk 0:01:35.4]} 26... Ne5 {[%clk 0:00:35.9]} 27. Bxe5 {[%clk 0:01:34.7]}
27... Rxe5 {[%clk 0:00:36]} 28. Rhf1 {[%clk 0:01:32.2]} 28... Rde8 {[%clk
0:00:36.2]} 29. Rf4 {[%clk 0:01:31.9]} 29... g5 {[%clk 0:00:35.9]} 30. Rf6
{[%clk 0:01:31.2]} 30... Bg4 {[%clk 0:00:32.5]} 31. Rxd6 {[%clk 0:01:27.7]}
31... Bh5 {[%clk 0:00:28.8]} 32. Rb1 {[%clk 0:01:22.5]} 32... R8e7 {[%clk
0:00:23.7]} 33. Rd8+ {[%clk 0:01:20.5]} 33... Kg7 {[%clk 0:00:23.2]} 34. d6
{[%clk 0:01:20.8]} 34... R7e6 {[%clk 0:00:21.5]} 35. Rxb7 {[%clk 0:01:19]} 35...
Bg6 {[%clk 0:00:22.4]} 36. d7 {[%clk 0:01:16.6]} 36... Rd6 {[%clk 0:00:20.6]}
37. Re8 {[%clk 0:01:13.2]} 37... Rxd7 {[%clk 0:00:19]} 38. Rxd7 {[%clk
0:01:10.8]} 38... Rxe8 {[%clk 0:00:19.1]} 39. Rxa7 {[%clk 0:01:11]} 39... Bxe4
{[%clk 0:00:17.7]} 40. Bxe4 {[%clk 0:01:09.3]} 40... Rxe4 {[%clk 0:00:18.6]} 41.
a6 {[%clk 0:01:07.2]} 41... Re2+ {[%clk 0:00:18.5]} 42. Kb3 {[%clk 0:01:07]}
42... Re1 {[%clk 0:00:14.4]} 43. Ka4 {[%clk 0:01:05.9]} 43... Rb1 {[%clk
0:00:11.9]} 44. Rb7 {[%clk 0:01:05.1]} 44... h5 {[%clk 0:00:10.9]} 45. Rxb1
{[%clk 0:01:04.5]} 1-0

[Event "Early-Titled-Tuesday-Blitz-March-12-2024"]
[Site "Chess.com"]
[Date "2024.03.12"]
[Round "4"]
[White "SaiAgni_98"]
[Black "effefe"]
[Result "1-0"]
[WhiteElo "2562"]
[BlackElo "2401"]
[TimeControl "180+1"]
[EndTime "8:39:09 PDT"]
[Termination "SaiAgni_98 won on time"]

1. e4 {[%clk 0:03:00.9]} 1... c5 {[%clk 0:02:57.6]} 2. Nf3 {[%clk 0:03:00.8]}
2... d6 {[%clk 0:02:56.7]} 3. d4 {[%clk 0:03:01]} 3... cxd4 {[%clk 0:02:57.6]}
4. Qxd4 {[%clk 0:03:00.9]} 4... Nc6 {[%clk 0:02:55.4]} 5. Qe3 {[%clk 0:03:01.2]}
5... Nf6 {[%clk 0:02:54.8]} 6. h3 {[%clk 0:03:00.5]} 6... g6 {[%clk 0:02:55.2]}
7. Be2 {[%clk 0:03:00.9]} 7... Bg7 {[%clk 0:02:55.8]} 8. O-O {[%clk 0:03:01.4]}
8... O-O {[%clk 0:02:56.6]} 9. c4 {[%clk 0:02:57.6]} 9... Nd7 {[%clk 0:02:42.1]}
10. Nc3 {[%clk 0:02:57.1]} 10... Nde5 {[%clk 0:02:42.5]} 11. Rd1 {[%clk
0:02:52.5]} 11... Nxf3+ {[%clk 0:02:41.3]} 12. Bxf3 {[%clk 0:02:53.4]} 12... Ne5
{[%clk 0:02:40.2]} 13. Be2 {[%clk 0:02:53.6]} 13... Be6 {[%clk 0:02:40.6]} 14.
b3 {[%clk 0:02:52.6]} 14... a6 {[%clk 0:02:29.5]} 15. Bb2 {[%clk 0:02:51.5]}
15... Rc8 {[%clk 0:02:25.6]} 16. Rd2 {[%clk 0:02:48.8]} 16... Qa5 {[%clk
0:02:22.7]} 17. Rad1 {[%clk 0:02:45.5]} 17... Rc6 {[%clk 0:01:49.6]} 18. Nd5
{[%clk 0:02:44.9]} 18... Bxd5 {[%clk 0:01:47.4]} 19. exd5 {[%clk 0:02:45.3]}
19... Rcc8 {[%clk 0:01:23.5]} 20. f4 {[%clk 0:02:45]} 20... Nd7 {[%clk
0:01:21.3]} 21. Bxg7 {[%clk 0:02:45]} 21... Kxg7 {[%clk 0:01:21.4]} 22. Qxe7
{[%clk 0:02:45.1]} 22... Qc5+ {[%clk 0:01:16.8]} 23. Kh1 {[%clk 0:02:44.1]}
23... Nf6 {[%clk 0:01:07.7]} 24. Qxb7 {[%clk 0:02:43.6]} 24... Ne4 {[%clk
0:01:06.8]} 25. Rc2 {[%clk 0:02:24.6]} 25... Nf2+ {[%clk 0:01:04]} 26. Kh2
{[%clk 0:02:24.4]} 26... Nxd1 {[%clk 0:01:04.1]} 27. Bxd1 {[%clk 0:02:24.8]}
27... Qe3 {[%clk 0:00:58]} 28. g3 {[%clk 0:02:21.1]} 28... Qd3 {[%clk
0:00:41.4]} 29. Qxa6 {[%clk 0:01:45.1]} 29... Qxd1 {[%clk 0:00:41.1]} 30. Rg2
{[%clk 0:01:45.4]} 30... Rcd8 {[%clk 0:00:33.5]} 31. Qa5 {[%clk 0:01:43.6]}
31... Qd3 {[%clk 0:00:27.3]} 32. Rd2 {[%clk 0:01:42.6]} 32... Qe3 {[%clk
0:00:25.5]} 33. h4 {[%clk 0:01:41.1]} 33... Rfe8 {[%clk 0:00:25.1]} 34. Rg2
{[%clk 0:01:39.9]} 34... h5 {[%clk 0:00:22.3]} 35. Qb4 {[%clk 0:01:33.1]} 35...
Qd4 {[%clk 0:00:20.7]} 36. a4 {[%clk 0:01:31.3]} 36... Re3 {[%clk 0:00:11.3]}
37. a5 {[%clk 0:01:29.9]} 37... Qd3 {[%clk 0:00:07.7]} 38. Qb6 {[%clk
0:01:24.5]} 38... Rd7 {[%clk 0:00:06.5]} 39. a6 {[%clk 0:01:22.4]} 39... Qxb3
{[%clk 0:00:05.6]} 40. Qd4+ {[%clk 0:01:22.7]} 40... Kh7 {[%clk 0:00:04.3]} 41.
a7 {[%clk 0:01:23.6]} 41... Re8 {[%clk 0:00:02.8]} 42. Rb2 {[%clk 0:01:18.1]}
42... Qa4 {[%clk 0:00:02]} 43. Rb8 {[%clk 0:01:15.5]} 43... Re2+ {[%clk
0:00:02.1]} 44. Kh3 {[%clk 0:01:15.3]} 1-0

[Event "Early-Titled-Tuesday-Blitz-March-12-2024"]
[Site "Chess.com"]
[Date "2024.03.12"]
[Round "4"]
[White "lasRojas"]
[Black "DIMONBANAN"]
[Result "0-1"]
[WhiteElo "2304"]
[BlackElo "2537"]
[TimeControl "180+1"]
[EndTime "8:39:13 PDT"]
[Termination "DIMONBANAN won on time"]

1. e4 {[%clk 0:00:40.7]} 1... e5 {[%clk 0:02:59.6]} 2. Nf3 {[%clk 0:00:41]} 2...
Nc6 {[%clk 0:03:00.3]} 3. d4 {[%clk 0:00:40.5]} 3... exd4 {[%clk 0:03:01.2]} 4.
Nxd4 {[%clk 0:00:41.2]} 4... Bc5 {[%clk 0:03:01.2]} 5. Nb3 {[%clk 0:00:41.2]}
5... Bb4+ {[%clk 0:03:01.5]} 6. c3 {[%clk 0:00:41.2]} 6... Be7 {[%clk
0:03:01.4]} 7. Be2 {[%clk 0:00:40.1]} 7... Nf6 {[%clk 0:03:01.5]} 8. N1d2 {[%clk
0:00:37.8]} 8... d5 {[%clk 0:03:01.1]} 9. exd5 {[%clk 0:00:37.9]} 9... Qxd5
{[%clk 0:02:59.2]} 10. Bf3 {[%clk 0:00:38.3]} 10... Qe5+ {[%clk 0:02:51.5]} 11.
Qe2 {[%clk 0:00:38.6]} 11... Qxe2+ {[%clk 0:02:51.4]} 12. Bxe2 {[%clk
0:00:39.2]} 12... O-O {[%clk 0:02:51.6]} 13. O-O {[%clk 0:00:39.5]} 13... Bf5
{[%clk 0:02:34.4]} 14. Nc4 {[%clk 0:00:39.1]} 14... Rad8 {[%clk 0:02:31.1]} 15.
Bf4 {[%clk 0:00:39]} 15... Nd5 {[%clk 0:02:26.4]} 16. Bg3 {[%clk 0:00:37.5]}
16... b5 {[%clk 0:02:11.7]} 17. Ne5 {[%clk 0:00:33.8]} 17... Nxe5 {[%clk
0:02:09.2]} 18. Bxe5 {[%clk 0:00:34.7]} 18... c6 {[%clk 0:02:09.6]} 19. Nd4
{[%clk 0:00:34.7]} 19... Bd7 {[%clk 0:02:08.5]} 20. Rfd1 {[%clk 0:00:34.3]}
20... Bc5 {[%clk 0:02:02]} 21. Nxb5 {[%clk 0:00:29.2]} 21... Rfe8 {[%clk
0:02:01.2]} 22. Bd4 {[%clk 0:00:18.2]} 22... Rxe2 {[%clk 0:01:02]} 23. Bxc5
{[%clk 0:00:18.3]} 23... Rxb2 {[%clk 0:01:02.3]} 24. c4 {[%clk 0:00:17.5]} 24...
Nf6 {[%clk 0:01:00.5]} 25. Nd6 {[%clk 0:00:16.9]} 25... Be6 {[%clk 0:00:47.4]}
26. Rdb1 {[%clk 0:00:15.5]} 26... Rd2 {[%clk 0:00:41.6]} 27. Rd1 {[%clk
0:00:13.9]} 27... Rxd1+ {[%clk 0:00:39.1]} 28. Rxd1 {[%clk 0:00:14]} 28... Ne4
{[%clk 0:00:33.3]} 29. Ba3 {[%clk 0:00:05.3]} 29... c5 {[%clk 0:00:33.4]} 30.
Bxc5 {[%clk 0:00:01.5]} 30... Nxc5 {[%clk 0:00:32.2]} 31. Rd2 {[%clk 0:00:01.2]}
31... Nb7 {[%clk 0:00:26.1]} 32. Ne4 {[%clk 0:00:01.6]} 32... Bxc4 {[%clk
0:00:23.9]} 0-1